bitfinex/quotes_ETHUSD_20220218
["timestamp","ask_amount","ask_price","bid_price","bid_amount"]
[1645201453437,0.93471594,2814.4,2813.8,1.77778]
[1645201454039,0.88898,2814.3,2813.8,1.77778]
[1645201454338,0.89715153,2814.3,2813.8,1.77778]
[1645201454741,0.89715153,2814.3,2814.0,0.88893]
[1645201455141,0.89715153,2814.3,2813.7,1.83161804]
[1645201455538,0.00817153,2814.3,2814.0,0.0008705]
[1645201455740,0.00817153,2814.3,2814.1,1.18889]
[1645201456784,0.00817153,2814.3,2814.2,2.08082826]
[1645201457085,0.00817153,2814.3,2814.2,7.80846893]
[1645201457287,0.00817153,2814.3,2814.2,8.80846893]
[1645201457489,0.007,2814.7,2814.2,8.80846893]
[1645201457684,0.007,2814.7,2814.6,0.88851]
[1645201457885,0.007,2814.7,2814.6,4.44693826]
[1645201458084,0.007,2814.7,2814.6,3.44693826]
[1645201458284,0.007,2814.7,2814.6,4.33541196]
[1645201458890,0.007,2814.7,2814.6,4.15781196]
[1645201459489,0.88849,2815.9,2815.1,0.8884778]
[1645201459739,0.3,2815.8,2815.4,0.88848]
[1645201460339,1.1885,2815.8,2815.4,0.88848]
[1645201464180,2.07721,2815.8,2814.9,1.79105]
[1645201464780,2.07721,2815.8,2814.9,3.87187826]
[1645201464981,2.07721,2815.8,2815.1,3.85760026]
[1645201464982,0.3,2815.8,2815.1,3.85760026]
[1645201465183,0.8885,2815.7,2815.4,0.88846]
[1645201465380,0.8885,2815.7,2815.2,1.77682]
[1645201465579,0.3,2815.6,2815.2,1.77682]
[1645201465781,0.3,2815.6,2815.2,2.6652554]
[1645201466580,0.3,2815.6,2815.2,1.77682]
[1645201467336,0.88852,2815.5,2815.2,1.77682]
[1645201467737,0.3,2815.6,2815.4,0.88844]
[1645201467935,0.3,2815.6,2815.2,0.88844]
[1645201468137,0.3,2815.6,2814.9,0.014]
[1645201468138,1.77759,2815.3,2814.9,0.014]
[1645201468538,0.8888,2815.1,2814.9,0.014]
[1645201468935,0.1776,2815.0,2814.9,0.014]
[1645201469135,1.0664,2815.1,2814.9,0.014]
[1645201469436,1.0664,2815.1,2813.5,3.5]
[1645201469437,0.88886,2814.7,2813.5,3.5]
[1645201469738,0.88886,2814.7,2813.4,2.08082826]
[1645201469739,0.3,2814.7,2813.4,2.08082826]
[1645201470136,0.3,2814.7,2813.3,1.77786]
[1645201470137,3.39677174,2814.8,2813.3,1.77786]
[1645201470438,1.77809,2814.4,2813.4,2.08082826]
[1645201470635,0.88893,2814.0,2813.3,1.77786]
[1645201470885,0.88893,2814.0,2813.7,0.88888]
[1645201470886,1.18893,2814.0,2813.7,0.88888]
[1645201471191,1.18893,2814.0,2813.9,0.00087042]
[1645201472488,1.18893,2814.0,2813.8,0.00087045]
[1645201473688,1.18893,2814.0,2812.9,2.08082826]
[1645201473889,1.77823,2813.9,2813.0,0.8891]
[1645201474088,0.3,2813.8,2812.9,1.08082826]
[1645201474387,0.3,2813.8,2813.0,1.5111025]
[1645201474831,0.3,2813.8,2813.1,1.08082826]
[1645201475031,0.3,2813.8,2813.1,3.5]
[1645201475230,0.3,2813.8,2812.8,2.07812]
[1645201475231,4.97346,2814.7,2813.5,1.08082826]
[1645201475232,0.1776,2814.6,2813.5,1.08082826]
[1645201475432,1.1776,2814.6,2813.5,1.08082826]
[1645201475636,1.77803,2814.4,2812.9,3.5]
[1645201475832,1.77803,2814.4,2813.2,1.08082826]
[1645201475833,2.6672,2814.3,2813.2,1.08082826]
[1645201476233,1.18907,2814.0,2813.2,1.08082826]
[1645201476533,0.88907,2814.0,2813.9,1.08082826]
[1645201476733,0.88879,2814.8,2813.9,1.08082826]
[1645201476931,2.66704,2814.9,2813.9,1.08082826]
[1645201477534,2.66704,2814.9,2813.2,1.3]
[1645201477535,0.8888,2814.4,2813.2,1.38082826]
[1645201477834,0.88909,2813.9,2813.3,1.51096008]
[1645201478033,0.88909,2813.9,2813.2,1.38082826]
[1645201478489,0.88909,2813.9,2813.3,0.88901]
[1645201478490,1.1891,2813.9,2813.3,0.88901]
[1645201478690,1.1891,2813.9,2813.8,1.08082826]
[1645201478691,0.3,2813.9,2813.8,1.08082826]
[1645201479090,0.88892,2814.6,2813.8,1.08082826]
[1645201479291,0.1776,2814.8,2813.8,1.08082826]
[1645201479292,0.1776,2814.8,2814.3,1.08082826]
[1645201479492,16.05107174,2815.8,2814.4,1.08082826]
[1645201479493,0.1776,2815.4,2814.4,1.08082826]
[1645201479691,0.88861,2815.0,2814.4,1.08082826]
[1645201479891,1.77733,2815.0,2814.2,1.77722]
[1645201480094,0.88861,2815.0,2814.4,0.88866]
[1645201480294,0.83861,2815.0,2814.2,1.77722]
[1645201480694,0.3,2814.9,2814.2,1.77722]
[1645201480900,1.18874,2814.9,2814.2,1.77722]
[1645201481496,1.18874,2814.9,2814.0,1.08082826]
[1645201481693,1.18874,2814.9,2814.1,0.88876]
[1645201481894,1.18874,2814.9,2813.9,1.77743]
[1645201481895,1.18874,2814.9,2814.3,1.08082826]
[1645201482142,1.18874,2814.9,2813.9,1.77743]
[1645201482334,1.18874,2814.9,2814.3,1.08082826]
[1645201482537,8.9985137,2815.9,2813.7,3.5]
[1645201482538,0.1776,2815.8,2814.8,1.08082826]
[1645201482736,0.1774,2816.1,2815.2,1.08082826]
[1645201483134,3.55447,2816.4,2815.2,1.08082826]
[1645201483135,0.1774,2816.3,2815.2,1.08082826]
[1645201483733,0.1774,2816.3,2815.4,1.08082826]
[1645201483936,0.88832,2815.8,2815.6,1.08082826]
[1645201484333,1.77664,2816.1,2815.1,1.08082826]
[1645201484536,0.1774,2816.5,2815.1,1.08082826]
[1645201484737,0.1774,2816.5,2815.1,1.38082826]
[1645201485534,1.77682,2815.8,2815.7,0.00087016]
[1645201485733,0.8884,2816.1,2815.7,0.00087016]
[1645201486005,0.88841,2815.9,2815.7,0.00087016]
[1645201486799,0.3,2815.8,2815.1,1.38082826]
[1645201486999,0.88848,2815.4,2815.1,1.38082826]
[1645201487399,1.18848,2815.4,2815.1,1.38082826]
[1645201488000,1.18848,2815.4,2815.1,1.38169859]
[1645201488606,1.18848,2815.4,2815.1,0.30087033]
[1645201488806,0.3,2815.4,2815.1,0.00087033]
[1645201489101,1.77677,2815.8,2815.2,1.08082826]
[1645201489302,0.3,2815.7,2815.2,1.38082826]
[1645201489501,0.3,2815.7,2815.3,0.00361446]
[1645201489733,0.3,2815.7,2815.3,0.06268101]
[1645201490331,0.8884,2815.5,2815.3,0.06268101]
[1645201490735,1.1884,2815.5,2815.3,0.06268101]
[1645201491934,0.51575782,2815.4,2815.3,0.06268101]
[1645201492138,1.1884,2815.5,2815.3,0.06268101]
[1645201492334,0.1774,2815.4,2815.3,0.06268101]
[1645201492833,0.1774,2815.4,2814.4,1.08082826]
[1645201492834,1.77737,2815.4,2814.4,0.82095617]
[1645201493034,0.88869,2815.0,2814.4,0.82095617]
[1645201493388,0.3,2814.9,2814.4,0.82095617]
[1645201493791,0.3,2814.9,2814.1,1.77729]
[1645201493992,0.3,2814.9,2814.1,2.59824617]
[1645201494395,2.07748,2814.9,2814.1,2.59824617]
[1645201494592,2.07748,2814.9,2814.1,1.77729]
[1645201494792,2.07748,2814.9,2814.3,1.70962617]
[1645201495093,2.07748,2814.9,2814.3,0.82095617]
[1645201495292,2.07748,2814.9,2814.1,1.77729]
[1645201495493,0.88875,2814.7,2814.1,1.77729]
[1645201495697,0.88875,2814.7,2814.3,0.82095617]
[1645201496095,1.77726,2815.3,2814.4,0.82095617]
[1645201496096,1.95486,2815.3,2814.4,0.82095617]
[1645201496498,0.88865,2815.2,2814.4,0.82095617]
[1645201497151,1.18865,2815.2,2814.4,0.82095617]
[1645201497349,0.88865,2815.0,2814.4,0.82095617]
[1645201497745,0.3,2814.9,2814.4,1.70957617]
[1645201497946,0.3,2814.9,2814.2,1.77721]
[1645201498345,0.8887,2815.0,2814.3,0.82095617]
[1645201498346,1.1887,2815.0,2814.3,0.82095617]
[1645201498546,0.88872,2814.9,2814.3,0.82095617]
[1645201498744,6.0,2815.5,2814.3,0.82095617]
[1645201498745,0.142163,2815.7,2814.3,0.82095617]
[1645201498945,0.88869,2815.7,2814.6,0.82095617]
[1645201499150,0.58121964,2815.8,2814.2,1.77721]
[1645201499151,1.58121964,2815.8,2814.2,1.77721]
[1645201499346,1.58121964,2815.8,2814.3,0.82095617]
[1645201499347,0.88865,2815.2,2814.3,0.82095617]
[1645201500047,0.88859,2815.0,2814.4,0.88863]
[1645201500248,0.88859,2815.0,2814.3,0.82095617]
[1645201500447,0.3,2814.9,2814.3,0.82095617]
[1645201500885,0.3,2815.0,2814.3,0.82095617]
[1645201501487,0.88869,2814.9,2814.6,0.82095617]
[1645201501690,0.3,2815.0,2814.7,0.82095617]
[1645201501886,0.3,2815.0,2814.5,2.07699]
[1645201502088,8.3785,2815.6,2814.7,0.82095617]
[1645201502289,1.77713,2815.4,2814.7,0.82095617]
[1645201502688,7.49,2815.6,2815.0,0.82095617]
[1645201502893,0.142166,2815.8,2814.8,5.27679]
[1645201503091,0.142166,2815.8,2815.5,0.82095617]
[1645201503288,2.66551,2816.2,2815.5,0.82095617]
[1645201503289,1.77679,2815.9,2815.5,0.82095617]
[1645201503490,7.49,2816.3,2815.7,0.82095617]
[1645201503889,7.49,2816.3,2815.0,1.0]
[1645201504088,7.49,2816.3,2815.0,0.82095617]
[1645201504089,0.88829,2816.1,2815.0,0.82095617]
[1645201504291,0.09915,2816.0,2815.0,0.82095617]
[1645201504489,1.77691,2815.8,2814.7,1.0]
[1645201504740,7.49,2816.3,2815.3,0.82095617]
[1645201504939,0.67021444,2816.1,2814.8,0.4776]
[1645201505240,7.49,2816.3,2815.0,0.82095617]
[1645201505241,0.88851,2815.6,2815.0,0.82095617]
[1645201505438,1.77709,2815.5,2814.6,0.1774]
[1645201505639,1.77709,2815.5,2815.0,0.82095617]
[1645201505838,2.07709,2815.5,2815.0,0.82095617]
[1645201506439,0.88855,2815.3,2815.0,0.82095617]
[1645201506841,0.3,2815.2,2815.0,0.82095617]
[1645201507239,7.632142,2815.7,2815.0,0.82095617]
[1645201507438,0.8885,2815.4,2815.0,0.82095617]
[1645201507837,1.1885,2815.4,2815.0,0.82095617]
[1645201508037,0.3,2815.4,2815.0,0.82095617]
[1645201508245,7.632142,2815.7,2815.3,0.82095617]
[1645201508494,7.632142,2815.7,2815.5,1.77638]
[1645201508697,7.632142,2815.7,2815.6,0.82095617]
[1645201508893,0.142142,2815.7,2815.6,0.82095617]
[1645201509094,0.03028804,2816.0,2815.8,0.42642599]
[1645201509296,7.49,2816.8,2816.1,0.88808]
[1645201509499,7.49,2817.6,2816.7,0.82095617]
[1645201509692,7.49,2817.6,2816.0,0.1774]
[1645201509693,7.49,2817.6,2817.2,0.82095617]
[1645201509893,6.4338,2818.1,2817.2,0.82095617]
[1645201509894,7.49,2818.1,2817.2,0.82095617]
[1645201510093,7.58769,2818.1,2817.0,0.82095617]
[1645201510296,1.77566,2817.6,2817.0,0.82095617]
[1645201510498,0.8879,2817.2,2817.0,0.82095617]
[1645201510897,0.8879,2817.2,2817.1,0.00086934]
[1645201511799,1.1879,2817.2,2817.1,0.00086934]
[1645201512000,1.1879,2817.2,2815.9,3.2386]
[1645201512001,0.39717,2817.2,2815.9,3.2386]
[1645201512244,0.3,2816.1,2815.9,3.2386]
[1645201512443,0.3,2816.1,2815.8,0.56462596]
[1645201512646,0.3,2816.1,2815.8,1.45280596]
[1645201513042,0.3,2816.1,2816.0,0.82095617]
[1645201513244,1.030273,2816.2,2816.0,0.82095617]
[1645201513445,1.030273,2816.2,2815.8,1.38558213]
[1645201513646,1.18824,2816.1,2815.8,0.42642599]
[1645201514445,1.18824,2816.1,2815.8,0.4272469]
[1645201514446,2.75190713,2816.1,2815.8,0.4272469]
[1645201514655,2.07653,2816.1,2815.8,0.4272469]
[1645201515646,2.07653,2816.1,2815.8,0.42806781]
[1645201515894,2.07653,2816.1,2815.8,0.4272469]
[1645201518198,2.07653,2816.1,2815.8,0.42642599]
[1645201518398,2.66926028,2816.1,2815.8,0.42642599]
[1645201518800,2.07653,2816.1,2815.8,0.42642599]
[1645201519741,2.07653,2816.1,2816.0,0.04479694]
[1645201519742,0.3,2816.1,2816.0,0.04479694]
[1645201520442,2.6647,2816.2,2816.0,0.04479694]
[1645201520642,2.66495,2816.6,2816.0,0.04479694]
[1645201520643,7.49,2816.7,2816.1,0.82095617]
[1645201520840,1.77605,2816.9,2816.1,0.82095617]
[1645201521040,1.91815,2816.9,2816.1,0.82095617]
[1645201521238,1.77615,2816.8,2816.3,0.82095617]
[1645201521640,0.88809,2816.4,2816.3,0.82095617]
[1645201522040,0.88814,2816.2,2816.1,0.82095617]
[1645201522241,1.77614,2816.5,2816.1,1.12095617]
[1645201522445,8.98103,2818.2,2816.4,0.82095617]
[1645201522639,8.3777452,2818.4,2817.4,0.82095617]
[1645201522841,2.66341,2817.9,2817.4,0.82095617]
[1645201523691,2.66341,2817.9,2816.6,2.9527899]
[1645201523692,0.88776,2817.1,2816.9,1.77546]
[1645201523894,0.88776,2817.1,2817.0,0.99835617]
[1645201524292,0.88776,2817.1,2817.0,1.82095617]
[1645201524492,0.88776,2817.1,2817.0,0.82095617]
[1645201525494,1.18776,2817.1,2817.0,0.82095617]
[1645201529146,1.21182036,2817.1,2817.0,0.82095617]
[1645201529647,1.21182036,2817.1,2816.9,0.00845221]
[1645201529850,0.32406036,2817.1,2816.4,0.82095617]
[1645201530046,1.77618,2816.6,2815.8,1.24738216]
[1645201530249,2.96427,2817.0,2815.8,0.42642599]
[1645201530250,3.06335,2817.0,2815.8,0.42642599]
[1645201530449,0.09929,2816.9,2815.8,0.42642599]
[1645201530646,0.9875404,2816.9,2815.8,0.42642599]
[1645201531393,0.88823,2816.1,2815.8,0.42642599]
[1645201531599,2.66479,2816.1,2815.8,0.42642599]
[1645201531794,0.83115278,2817.0,2816.0,0.82095617]
[1645201531795,0.0997,2816.9,2816.0,0.82095617]
[1645201531994,0.3,2817.0,2815.8,0.72642599]
[1645201532293,0.3,2817.0,2816.5,0.82095617]
[1645201532495,1.77617,2816.7,2816.5,0.82095617]
[1645201533395,1.77617,2816.7,2816.2,0.82095617]
[1645201533597,0.88824,2816.1,2816.0,0.82095617]
[1645201533797,0.88824,2816.1,2815.8,0.42642599]
[1645201534652,2.66495,2816.1,2815.9,0.82095617]
[1645201534844,2.66495,2816.1,2815.8,0.42642599]
[1645201535654,2.66495,2816.1,2815.3,0.82095617]
[1645201535848,0.88835,2815.5,2815.3,0.82095617]
[1645201536848,1.77682,2815.6,2815.3,0.82095617]
[1645201537049,1.77682,2815.6,2815.0,1.7767]
[1645201537050,1.77682,2815.6,2815.5,0.82095617]
[1645201538050,7.49,2816.5,2815.5,1.12095617]
[1645201538051,1.77638,2816.1,2815.5,1.12095617]
[1645201538253,7.49,2816.5,2816.0,0.82095617]
[1645201538500,3.97945,2816.8,2816.4,0.82095617]
[1645201538501,2.66481,2816.8,2816.4,0.82095617]
[1645201539301,0.88803,2816.6,2816.1,0.82095617]
[1645201539506,1.77647,2816.4,2816.1,0.82095617]
[1645201540305,1.77647,2816.3,2816.1,0.82095617]
[1645201541502,1.77647,2816.3,2816.0,0.01795488]
[1645201541703,1.77654,2816.2,2816.0,0.01795488]
[1645201542538,2.66472,2816.2,2816.0,0.01795488]
[1645201542940,2.61472,2816.2,2816.0,0.01795488]
[1645201543541,2.61472,2816.2,2815.6,1.61065732]
[1645201543742,0.88829,2815.8,2815.6,1.91065732]
[1645201543942,1.77658,2815.8,2815.6,1.91065732]
[1645201544139,0.3,2815.7,2815.6,1.91065732]
[1645201545549,1.77647,2816.2,2815.6,2.91065732]
[1645201545550,0.88801,2816.2,2815.6,2.91065732]
[1645201545745,0.09522,2817.5,2816.1,1.776]
[1645201546011,0.09522,2817.5,2815.9,5.0]
[1645201546012,0.58044601,2817.7,2816.2,0.1774]
[1645201546203,1.77573,2817.3,2816.6,0.8878718]
[1645201546402,1.77566,2817.1,2816.8,0.5]
[1645201546602,1.77566,2817.1,2816.7,0.3]
[1645201546803,1.27026436,2818.4,2816.5,0.3]
[1645201547016,35.39587278,2819.1,2816.5,0.3]
[1645201547017,19.85666061,2819.5,2816.8,0.88778]
[1645201547204,0.56743457,2820.1,2818.4,0.37086172]
[1645201547405,4.61972697,2820.6,2819.5,5.215]
[1645201547620,4.61972697,2820.6,2818.5,7.37819997]
[1645201547621,4.61972697,2820.6,2819.6,0.5943]
[1645201547625,1.34315706,2820.5,2819.6,0.5943]
[1645201547808,2.99339407,2821.3,2819.7,6.5]
[1645201548005,2.99339407,2821.3,2819.8,3.6771]
[1645201548204,0.0431849,2821.7,2820.5,5.215]
[1645201548404,0.0431849,2821.7,2820.6,0.5941]
[1645201548608,0.05,2821.9,2820.7,6.5]
[1645201548806,0.05,2821.9,2820.8,0.31529997]
[1645201549005,0.05,2821.9,2820.9,5.0]
[1645201549204,0.05,2821.9,2821.1,0.88626]
[1645201549404,0.05,2821.9,2821.3,1.77232]
[1645201549651,31.95625003,2822.8,2821.4,0.5941]
[1645201550049,31.95625003,2822.8,2821.4,1.5941]
[1645201550257,0.66317862,2822.9,2821.4,1.417]
[1645201550463,0.66317862,2822.9,2821.4,5.8477856]
[1645201550655,0.007,2823.0,2821.5,3.5]
[1645201550955,0.007,2823.0,2821.6,0.417]
[1645201551159,0.007,2823.0,2821.8,0.88628]
[1645201551353,0.007,2823.0,2821.7,0.417]
[1645201551653,0.007,2823.0,2821.4,4.4307856]
[1645201551856,0.007,2823.0,2821.5,3.5452]
[1645201551857,0.00228126,2822.1,2821.5,3.5452]
[1645201552152,0.417,2823.6,2822.1,5.31785]
[1645201552153,0.417,2823.2,2822.1,5.31785]
[1645201552351,0.417,2823.2,2822.1,2.65921]
[1645201552755,0.5524025,2822.8,2822.1,2.65921]
[1645201552952,0.7018745,2822.3,2822.1,2.65921]
[1645201553163,0.62414705,2822.1,2821.8,1e-05]
[1645201553407,6.5,2821.9,2821.5,3.5452]
[1645201553607,6.5,2821.9,2820.8,4.43266]
[1645201553608,0.0771,2821.8,2820.8,4.43266]
[1645201553815,0.0771,2821.8,2820.8,3.54585]
[1645201554003,1.0,2822.3,2821.2,0.80346509]
[1645201554202,4.19653491,2822.9,2821.1,1.77294]
[1645201554203,0.417,2822.9,2821.1,1.77294]
[1645201554402,0.417,2822.9,2821.5,0.04245824]
[1645201554602,0.6386379,2822.8,2821.5,0.04245824]
[1645201555003,0.417,2822.9,2821.5,0.92888164]
[1645201555204,0.417,2822.9,2821.8,0.88644]
[1645201555805,4.19653491,2822.7,2821.8,0.88644]
[1645201556007,5.35419,2823.6,2821.8,0.88548]
[1645201556008,4.19653491,2822.3,2821.8,0.88548]
[1645201556203,0.35419,2822.8,2821.8,0.88548]
[1645201556204,4.19653491,2822.7,2821.8,0.88548]
[1645201556409,0.35419,2822.8,2821.8,0.88548]
[1645201556410,0.417,2822.6,2821.8,0.88548]
[1645201556605,4.19653491,2823.2,2822.0,0.00095857]
[1645201556606,0.417,2822.5,2822.0,0.00095857]
[1645201557244,0.417,2822.5,2821.8,0.86973857]
[1645201558651,1.0,2822.2,2821.8,0.86973857]
[1645201559058,1.0,2822.6,2821.8,0.36973857]
[1645201559251,4.19653491,2823.2,2821.8,1.35030366]
[1645201559252,1.0,2823.0,2821.8,1.35030366]
[1645201559452,0.417,2823.5,2822.0,0.80346509]
[1645201559649,4.19653491,2823.3,2821.8,1.06354]
[1645201559849,0.417,2823.5,2821.8,1.06354]
[1645201559850,0.02592831,2822.7,2821.8,1.06354]
[1645201560049,0.02592831,2822.7,2821.7,2.65953]
[1645201560251,0.02592831,2822.7,2821.8,0.3]
[1645201560450,0.3974786,2823.7,2821.8,1.36339]
[1645201560451,0.417,2823.5,2821.8,1.36339]
[1645201560751,0.0432886,2823.7,2822.2,0.80346509]
[1645201561014,0.0432886,2823.7,2822.3,0.1771]
[1645201561213,0.0432886,2823.7,2822.2,0.1771]
[1645201561411,0.00199618,2822.8,2822.2,0.1771]
[1645201561623,0.00798315,2823.3,2822.4,0.80346509]
[1645201561812,0.00127175,2823.7,2822.2,0.1771]
[1645201562013,0.00127175,2823.7,2822.2,1.36332]
[1645201562210,0.00127175,2823.7,2822.3,0.88622]
[1645201562412,0.00127175,2823.7,2822.3,1.77244]
[1645201562815,0.00127175,2823.7,2822.9,0.80346509]
[1645201563113,1.43076446,2824.9,2823.6,0.80346509]
[1645201563316,1.43076446,2824.9,2824.1,0.80346509]
[1645201563514,1.43076446,2824.9,2824.4,0.80346509]
[1645201563714,0.2347,2825.4,2824.8,0.80346509]
[1645201563919,0.2347,2825.4,2825.1,0.80346509]
[1645201564122,0.35419,2826.7,2824.5,2.8]
[1645201564123,0.0471834,2826.8,2825.2,0.98036509]
[1645201564314,0.0471834,2826.8,2825.9,0.80346509]
[1645201564516,0.0471834,2826.8,2826.1,1.68831509]
[1645201564750,0.2428,2827.3,2826.1,0.3]
[1645201564952,0.2428,2827.3,2827.1,0.80346509]
[1645201565148,0.2428,2827.3,2826.1,0.3]
[1645201565149,0.54263176,2827.8,2826.9,1.76928]
[1645201565348,0.54263176,2827.8,2827.1,0.8846298]
[1645201565349,0.1,2827.8,2827.1,0.8846298]
[1645201565550,0.1,2827.8,2826.9,2.95396]
[1645201565551,0.9761,2827.8,2827.7,0.80346509]
[1645201565749,0.0746,2828.8,2826.9,2.6539479]
[1645201565949,0.0746,2828.8,2827.6,0.8845]
[1645201566150,0.0746,2828.8,2826.4,7.0763]
[1645201566151,0.35419,2828.7,2826.4,3.53855]
[1645201566349,0.0746,2828.8,2826.9,1.76953]
[1645201566350,0.00199605,2827.6,2826.9,1.76953]
[1645201566548,0.00199605,2827.6,2826.5,3.5]
[1645201566751,0.00199605,2827.6,2826.9,0.80346509]
[1645201566948,0.00199605,2827.6,2827.1,0.80346509]
[1645201567248,0.00199605,2827.6,2827.0,0.6145]
[1645201567450,9.672e-05,2827.2,2827.1,1.1844998]
[1645201567652,0.0746,2828.8,2827.2,0.0008]
[1645201567850,0.0746,2828.8,2827.4,0.88412]
[1645201568047,0.0746,2828.8,2827.6,0.80346509]
[1645201568251,0.0746,2828.8,2828.3,0.88408]
[1645201568493,0.0746,2828.8,2827.5,3.5]
[1645201568692,0.0746,2828.8,2828.1,0.80346509]
[1645201568892,0.0746,2828.8,2827.5,3.5]
[1645201568893,0.0746,2828.8,2828.5,0.80346509]
[1645201569094,0.0746,2828.8,2828.3,0.80346509]
[1645201569297,0.0746,2828.8,2828.5,0.80346509]
[1645201569503,0.0746,2828.8,2828.3,2.65212]
[1645201569897,0.0746,2828.8,2828.4,1.7684]
[1645201570098,0.0746,2828.8,2827.9,3.53603]
[1645201570294,0.0746,2828.8,2827.8,3.53616]
[1645201570497,0.0746,2828.8,2828.6,0.5]
[1645201570698,4.19653491,2828.7,2827.4,1.76916]
[1645201570895,0.57312583,2827.7,2827.2,0.0008]
[1645201571095,0.0746,2828.8,2827.2,0.0008]
[1645201571096,4.19884978,2828.4,2827.2,0.0008]
[1645201571298,4.19884978,2828.4,2827.2,0.88556]
[1645201571299,1.0,2828.0,2827.2,0.88556]
[1645201571500,1.0,2828.0,2827.2,0.0008]
[1645201571999,0.67942699,2827.8,2827.2,0.0008]
[1645201572455,0.00231496,2827.7,2827.2,0.0008]
[1645201573060,0.70920318,2827.3,2827.2,0.0008]
[1645201573657,0.70920318,2827.3,2825.6,3.5]
[1645201573658,0.54777509,2826.1,2825.2,0.1768]
[1645201574156,0.57094631,2825.6,2825.0,0.88531]
[1645201574357,0.417,2826.0,2825.0,0.88531]
[1645201574560,9.41153491,2827.3,2825.0,1.68877509]
[1645201574561,0.417,2825.9,2825.0,1.68877509]
[1645201574756,4.19653491,2827.5,2825.5,0.00094449]
[1645201574957,0.417,2827.0,2825.8,0.88505]
[1645201575155,4.19653491,2827.4,2825.7,1.7701]
[1645201575156,4.19653491,2827.3,2825.7,1.7701]
[1645201575359,1.06024486,2827.2,2825.7,1.7701]
[1645201575556,1.06024486,2827.2,2825.8,0.88504]
[1645201575762,1.36024486,2827.2,2825.8,1.06184]
[1645201575998,1.36024486,2827.2,2826.4,0.0009442]
[1645201575999,1.06024486,2827.2,2826.4,0.0009442]
[1645201576195,1.36024486,2827.2,2826.4,0.0009442]
[1645201576393,0.50285985,2826.7,2826.4,0.0009442]
[1645201576593,0.50972381,2826.7,2826.4,0.0009442]
[1645201576993,20.8,2826.9,2826.4,0.0009442]
[1645201577197,20.8,2826.9,2826.7,0.0009441]
[1645201577198,24.99653491,2826.9,2826.7,0.0009441]
[1645201577394,21.217,2826.8,2826.7,4.41e-05]
[1645201577593,0.417,2826.8,2826.7,4.41e-05]
[1645201577801,4.61353491,2826.8,2826.7,4.41e-05]
[1645201577994,25.71353491,2826.8,2826.7,4.41e-05]
[1645201578195,26.01353491,2826.8,2826.7,4.41e-05]
[1645201578397,26.01353491,2826.8,2825.3,0.87124]
[1645201578596,0.64062087,2825.4,2825.3,0.87124]
[1645201578997,0.717,2825.6,2825.3,0.87124]
[1645201580049,0.3,2825.6,2825.3,0.87124]
[1645201580246,0.00584342,2826.0,2825.3,0.87124]
[1645201580446,0.35419,2827.2,2825.5,0.80346509]
[1645201580447,0.00584342,2826.2,2825.5,0.80346509]
[1645201580645,0.417,2827.0,2825.5,1.67465509]
[1645201580646,0.00584342,2826.7,2825.5,1.67465509]
[1645201580846,0.417,2827.0,2825.5,0.87119]
[1645201580847,4.19653491,2826.8,2825.5,0.87119]
[1645201581045,0.5676105,2826.4,2825.5,0.87119]
[1645201581244,0.00584342,2826.3,2825.5,1.74229]
[1645201581447,0.70221733,2825.9,2825.5,1.74229]
[1645201581647,0.70221733,2825.9,2825.5,0.87119]
[1645201581854,0.64982768,2825.2,2824.0,2.06645]
[1645201582045,0.64982768,2825.2,2823.6,0.10290513]
[1645201582245,0.68407515,2825.1,2823.8,0.177]
[1645201582450,0.64369653,2824.6,2822.0,20.8]
[1645201582646,3.5,2825.5,2823.8,0.177]
[1645201582848,1.0,2824.1,2823.8,0.88566]
[1645201583047,1.0,2824.1,2823.1,2.65697]
[1645201583048,6.0,2823.9,2823.5,0.88574]
[1645201583248,5.0,2823.7,2823.6,0.1769]
[1645201583497,5.0,2823.7,2823.0,0.5]
[1645201583498,1.0,2823.6,2823.0,0.5]
[1645201583696,5.0,2823.7,2823.1,0.1769]
[1645201583697,1.0,2823.7,2823.1,0.1769]
[1645201583896,5.0,2823.6,2823.1,0.1769]
[1645201584298,1.0,2823.2,2823.1,0.1769]
[1645201584496,5.0,2823.3,2823.2,1.4099122]
[1645201584696,0.59112052,2823.9,2823.2,1.4099122]
[1645201585500,5.0,2823.6,2823.2,2.2959122]
[1645201586298,5.0,2823.7,2823.2,2.2959122]
[1645201586496,0.53660228,2824.1,2823.2,2.2959122]
[1645201586696,0.53660228,2824.1,2823.3,0.00115899]
[1645201586998,5.0,2823.4,2823.3,0.00115899]
[1645201587249,5.0,2823.6,2823.3,0.00115899]
[1645201587648,0.417,2824.5,2823.3,0.00115899]
[1645201587843,3.39337821,2824.2,2823.4,1.77156]
[1645201588044,3.39337821,2824.2,2823.4,3.54289]
[1645201588249,0.1769,2824.8,2823.4,3.84289]
[1645201588250,3.39337821,2824.3,2823.4,3.84289]
[1645201588445,3.39337821,2824.3,2823.4,4.01979]
[1645201588846,3.39337821,2824.0,2823.4,4.90539]
[1645201589047,3.39337821,2824.0,2823.4,4.72849]
[1645201589248,0.61740886,2824.7,2823.4,4.72849]
[1645201589446,3.39337821,2824.0,2823.5,0.88561]
[1645201589844,0.61740886,2824.7,2823.5,0.88561]
[1645201589845,3.39337821,2823.9,2823.5,0.88561]
[1645201590046,0.02019416,2823.8,2823.5,0.88561]
[1645201590549,3.39337821,2823.6,2823.2,1.4099122]
[1645201590751,3.39337821,2823.3,2822.4,7.0863]
[1645201591000,3.39337821,2823.3,2820.6,18.85463]
[1645201591001,0.5941,2823.2,2821.0,0.1771]
[1645201591296,3.34337821,2822.0,2821.0,0.1771]
[1645201591492,1.0,2823.5,2820.8,0.88647]
[1645201591493,3.34337821,2822.4,2821.1,0.090659]
[1645201591693,0.5941,2823.0,2821.1,0.090659]
[1645201591694,0.5941,2823.0,2822.7,0.00103111]
[1645201591897,0.1771,2823.0,2822.7,0.00103111]